fUST/lending_fUST_20241109
["ID","MTS","AMOUNT","RATE_DAILY","PERIOD"]
[341698702,1731100240951,-500.0,0.00029148,2]
[341698703,1731100240960,-251.38156666,0.00029187,2]
[341698704,1731100240973,-2055.37355936,0.00029187,2]
[341698705,1731100240982,-272.08460118,0.00029252,2]
[341698706,1731100240991,-500.0,0.00029283,2]
[341698707,1731100241000,-300.0,0.000294,2]
[341698708,1731100241009,-500.0,0.00029422,2]
[341698709,1731100241018,-470.2,0.00029557,2]
[341698710,1731100241027,-151.0,0.00029696,7]
[341698711,1731100241038,-500.0,0.00029696,2]
[341698712,1731100241047,-817.4,0.000297,2]
[341698713,1731100241057,-1781.76098228,0.000298,2]
[341698714,1731100241068,-10609.67051207,0.000298,2]
[341698715,1731100241079,-4751.45547768,0.000298,2]
[341698716,1731100241088,-1000.0,0.00029899,2]
[341698717,1731100241097,-8618.82901942,0.000299,2]
[341698718,1731100241106,-500.0,0.0002997,2]
[341698719,1731100241114,-296.93806982,0.00029997,2]
[341698720,1731100241125,-203.06193018,0.00029997,2]
[341698721,1731100241134,-500.0,0.00029997,2]
[341698722,1731100241144,-500.0,0.00029997,2]
[341698723,1731100241153,-122.79915275,0.00029997,2]
[341698724,1731100241703,-12429.1240214,0.00024417,2]
[341698725,1731100241714,-7902.9270042,0.00024417,2]
[341698726,1731100241723,-500.0,0.00027172,2]
[341698727,1731100241733,-242.41691247,0.00027172,2]
[341698728,1731100241742,-405.50491197,0.00027172,2]
[341698729,1731100241751,-500.0,0.00027172,2]
[341698730,1731100241759,-500.0,0.00027172,2]
[341698731,1731100241772,-500.0,0.00027172,2]
[341698732,1731100241781,-500.0,0.00027172,2]
[341698733,1731100241790,-500.0,0.00027172,2]
[341698734,1731100241799,-526.06711192,0.00027172,2]
[341698735,1731100241808,-514.4859019,0.00027172,2]
[341698736,1731100241818,-500.0,0.00027172,2]
[341698737,1731100241827,-500.0,0.00027172,2]
[341698738,1731100241837,-500.0,0.00027172,2]
[341698739,1731100241847,-500.0,0.00027172,2]
[341698740,1731100241856,-500.0,0.00027172,2]
[341698741,1731100241865,-500.0,0.00027172,2]
[341698742,1731100241874,-500.0,0.00027172,2]
[341698743,1731100241883,-500.0,0.00027172,2]
[341698744,1731100241892,-500.0,0.00027172,2]
[341698745,1731100241901,-500.0,0.00027172,2]
[341698746,1731100241910,-500.0,0.00027172,2]
[341698747,1731100241919,-500.0,0.00027172,2]
[341698748,1731100241929,-500.0,0.00027172,2]
[341698749,1731100241938,-500.0,0.00027172,2]
[341698750,1731100241947,-500.0,0.00027172,2]
[341698751,1731100241957,-500.0,0.00027172,2]
[341698752,1731100241966,-500.0,0.00027172,2]
[341698753,1731100241975,-500.0,0.00027172,2]
[341698754,1731100241984,-500.0,0.00027172,2]
[341698755,1731100241994,-500.0,0.00027172,2]
[341698756,1731100242003,-500.0,0.00027172,2]
[341698757,1731100242012,-500.0,0.00027172,2]
[341698758,1731100242021,-500.0,0.00027172,2]
[341698759,1731100242030,-500.0,0.00027172,2]
[341698760,1731100242040,-500.0,0.00027172,2]
[341698761,1731100242049,-500.0,0.00027172,2]
[341698762,1731100242058,-500.0,0.00027172,2]
[341698763,1731100242067,-500.0,0.00027172,2]
[341698764,1731100242076,-500.0,0.00027172,2]
[341698765,1731100242085,-492.85844436,0.00027172,2]
[341698766,1731100242095,-500.0,0.00027172,2]
[341698767,1731100242103,-500.0,0.00027172,2]
[341698768,1731100242112,-500.0,0.00027172,2]
[341698769,1731100242121,-500.0,0.00027172,2]
[341698770,1731100242130,-500.0,0.00027172,2]
[341698771,1731100242139,-500.0,0.00027172,2]
[341698772,1731100242148,-500.0,0.00027172,2]
[341698773,1731100242157,-500.0,0.00027172,2]
[341698774,1731100242166,-500.0,0.00027172,2]
[341698775,1731100242175,-475.70185454,0.00027172,2]
[341698776,1731100242184,-500.0,0.00027172,2]
[341698777,1731100242194,-500.0,0.00027172,2]
[341698778,1731100242203,-500.0,0.00027172,2]
[341698779,1731100242212,-500.0,0.00027172,2]
[341698780,1731100242221,-500.0,0.00027172,2]
[341698781,1731100242230,-500.0,0.00027172,2]
[341698782,1731100242239,-500.0,0.00027172,2]
[341698783,1731100242248,-500.0,0.00027172,2]
[341698784,1731100242257,-500.0,0.00027172,2]
[341698785,1731100242266,-500.0,0.00027172,2]
[341698786,1731100242275,-500.0,0.00027172,2]
[341698787,1731100242284,-500.0,0.00027397,2]
[341698788,1731100242294,-500.0,0.00027397,2]
[341698789,1731100242303,-500.0,0.00027397,2]
[341698790,1731100242312,-500.0,0.00027397,2]
[341698791,1731100242322,-500.0,0.00027397,2]
[341698792,1731100242331,-500.0,0.00027397,2]
[341698793,1731100242342,-500.0,0.00027397,2]
[341698794,1731100242351,-368.62259203,0.00027397,2]
[341698795,1731100242360,-500.0,0.00027397,2]
[341698796,1731100242370,-500.0,0.00027397,2]
[341698797,1731100242379,-500.0,0.00027397,2]
[341698798,1731100242389,-500.0,0.00027397,2]
[341698799,1731100242399,-500.0,0.00027397,2]
[341698800,1731100242408,-500.0,0.00027397,2]
[341698801,1731100242417,-500.0,0.00027397,2]
[341698802,1731100242428,-500.0,0.00027397,2]
[341698803,1731100242437,-500.0,0.00027397,2]
[341698804,1731100242446,-500.0,0.00027397,2]
[341698805,1731100242456,-500.0,0.00027397,2]
[341698806,1731100242465,-466.87338744,0.00027397,2]
[341698808,1731100242487,-33.12661256,0.00027397,2]
[341698809,1731100242496,-344.56338744,0.00027397,2]
[341698856,1731100503348,506.53544634,0.00031773,120]
[341698857,1731100768006,167.917135,0.00013973,2]
[341698867,1731101294468,958.04634142,0.000167,2]
[341698868,1731101309525,314.11998622,0.0002,10]
[341698869,1731101315414,1191.30032366,0.000134,2]
[341698870,1731101322529,694.44444444,0.00020843,2]
[341698871,1731101322585,5114.70650818,0.0002402,120]
[341698872,1731101326143,5243.47686444,0.00025,120]
[341698875,1731101329570,3619.78626227,0.00025,120]
[341698903,1731101432307,-694.44444444,0.00021769,2]
[341698905,1731101432317,-394.0,0.00022,2]
[341698907,1731101432326,-170.0,0.00022,2]
[341698910,1731101432338,-394.0,0.00022192,2]
[341698912,1731101432348,-394.0,0.00023014,2]
[341698914,1731101432358,-170.0,0.00023014,2]
[341698916,1731101432367,-259.18,0.00023047,2]
[341698918,1731101432378,-821.6059629,0.00023777,2]
[341698920,1731101432387,-300.0,0.00023836,2]
[341698922,1731101432396,-7.28859266,0.00023836,2]
[341698924,1731101432408,-292.71140734,0.00023836,2]
[341698926,1731101432417,-164.91554882,0.00023837,2]
[341698928,1731101432427,-676.06,0.00023837,2]
[341698930,1731101432436,-500.0,0.00023837,2]
[341698932,1731101432446,-500.0,0.00023837,2]
[341698933,1731101432456,-527.65281755,0.00023837,2]
[341698934,1731101432466,-325.24451425,0.00023837,2]
[341698935,1731101432475,-500.0,0.00023837,2]
[341698936,1731101432484,-196.1268874,0.00023838,2]
[341698937,1731101432493,-2987.48335755,0.00023838,2]
[341698938,1731101432519,-1059.27521353,0.00023838,2]
[341698957,1731101438508,-15012.75057349,0.00023838,2]
[341698960,1731101438524,-5065.00896673,0.00023838,2]
[341698962,1731101438533,-676.06,0.00024111,2]
[341698964,1731101438543,-500.0,0.00024111,2]
[341698966,1731101438553,-546.8855663,0.00024111,2]
[341698968,1731101438562,-222.14546697,0.00024111,2]
[341698975,1731101438631,-277.85453303,0.00024111,2]
[341698976,1731101438640,-249.736098,0.00024135,2]
[341698977,1731101438649,-170.0,0.00024164,2]
[341698979,1731101438659,-401.0,0.00024164,2]
[341698981,1731101438668,-676.06,0.00024385,2]
[341698983,1731101438677,-500.0,0.00024385,2]
[341698985,1731101438686,-500.0,0.00024385,2]
[341698986,1731101438695,-170.979708,0.0002442,2]
[341698987,1731101438704,-676.06,0.00024659,2]
[341698988,1731101438714,-500.0,0.00024659,2]
[341698989,1731101438723,-500.0,0.00024659,2]
[341698990,1731101438732,-676.06,0.00024933,2]
[341698991,1731101438741,-383.40574615,0.00024933,2]
[341698992,1731101438751,-436.23,0.00024933,2]
[341698993,1731101438760,-18323.46977546,0.00025,2]
[341698994,1731101438769,-716.85932159,0.00025,2]
[341698995,1731101438921,-27538.44575784,0.0002509,2]
[341698996,1731101438932,-5850.0,0.000252,2]
[341698997,1731101438941,-676.06,0.00025207,2]
[341698998,1731101438951,-676.06,0.00025481,2]
[341698999,1731101438960,-3082.3605647,0.00025616,2]
[341699000,1731101438969,-918.06,0.00025709,10]
[341699001,1731101438979,-1101.68,0.0002571,10]
[341699002,1731101438988,-155.728,0.00025716,2]
[341699003,1731101438998,-500.0,0.00025719,2]
[341699004,1731101439007,-500.0,0.00025719,2]
[341699005,1731101439016,-500.0,0.00025719,2]
[341699006,1731101439025,-500.0,0.00025719,2]
[341699007,1731101439035,-500.0,0.00025719,2]
[341699008,1731101439044,-500.0,0.00025719,2]
[341699009,1731101439053,-500.0,0.00025719,2]
[341699010,1731101439063,-500.0,0.00025719,2]
[341699011,1731101439072,-500.0,0.00025719,2]
[341699012,1731101439081,-500.0,0.00025719,2]
[341699013,1731101439091,-500.0,0.00025719,2]
[341699014,1731101439103,-165.87316048,0.00025719,2]
[341699015,1731101439113,-167.73760096,0.00025719,2]
[341699016,1731101439122,-500.0,0.00025719,2]
[341699017,1731101439131,-500.0,0.00025719,2]
[341699018,1731101439141,-500.0,0.00025719,2]
[341699019,1731101439151,-500.0,0.00025719,2]
[341699020,1731101439160,-500.0,0.00025719,2]
[341699021,1731101439170,-500.0,0.00025719,2]
[341699022,1731101439181,-500.76123166,0.00025719,2]
[341699023,1731101439190,-254.40020512,0.00025719,2]
[341699024,1731101439200,-473.94859019,0.00025719,2]
[341699025,1731101439209,-500.0,0.00025719,2]
[341699026,1731101439218,-500.0,0.00025719,2]
[341699027,1731101439227,-500.0,0.00025719,2]
[341699028,1731101439237,-500.0,0.00025719,2]
[341699029,1731101439246,-500.0,0.00025719,2]
[341699030,1731101439255,-500.0,0.00025719,2]
[341699031,1731101439265,-500.0,0.00025719,2]
[341699032,1731101439274,-500.0,0.00025719,2]
[341699033,1731101439283,-300.0,0.00025719,2]
[341699034,1731101439293,-500.0,0.00025719,2]
[341699035,1731101439302,-500.0,0.00025719,2]
[341699036,1731101439311,-500.0,0.0002572,2]
[341699037,1731101439320,-1973.73,0.0002572,2]
[341699038,1731101439329,-500.0,0.0002572,2]
[341699039,1731101439339,-500.0,0.0002572,2]
[341699040,1731101439348,-500.0,0.0002572,2]
[341699041,1731101439357,-500.0,0.0002572,2]
[341699042,1731101439366,-8093.77,0.0002572,2]
[341699043,1731101439375,-500.0,0.0002572,2]
[341699044,1731101439386,-500.0,0.0002572,2]
[341699045,1731101439396,-500.0,0.0002572,2]
[341699046,1731101439405,-500.0,0.0002572,2]
[341699047,1731101439413,-848.46,0.0002572,2]
[341699048,1731101439423,-5167.66,0.0002572,2]
[341699049,1731101439432,-500.0,0.0002572,2]
[341699050,1731101439441,-500.0,0.0002572,2]
[341699051,1731101439452,-605.68,0.0002572,2]
[341699052,1731101439461,-500.0,0.0002572,2]
[341699053,1731101439471,-500.0,0.0002572,2]
[341699054,1731101439480,-500.0,0.0002572,2]
[341699055,1731101439489,-500.0,0.0002572,2]
[341699056,1731101439499,-500.0,0.0002572,2]
[341699057,1731101439510,-500.0,0.0002572,2]
[341699058,1731101439519,-531.04840918,0.0002572,2]
[341699059,1731101439529,-211.55453174,0.0002572,2]
[341699060,1731101439539,-506.22415489,0.0002572,2]
[341699061,1731101439551,-500.0,0.0002572,2]
[341699062,1731101439561,-500.0,0.0002572,2]
[341699063,1731101439572,-500.0,0.0002572,2]
[341699064,1731101439582,-500.0,0.0002572,2]
[341699065,1731101439591,-500.0,0.0002572,2]
[341699066,1731101439601,-500.0,0.0002572,2]
[341699067,1731101439611,-500.0,0.0002572,2]
[341699068,1731101439620,-500.0,0.0002572,2]
[341699069,1731101439632,-500.0,0.0002572,2]
[341699070,1731101439641,-500.0,0.0002572,2]
[341699071,1731101439651,-500.0,0.0002572,2]
[341699072,1731101439660,-500.0,0.0002572,2]
[341699073,1731101439669,-500.0,0.0002572,2]
[341699074,1731101439678,-500.0,0.0002572,2]
[341699076,1731101439687,-500.0,0.0002572,2]
[341699077,1731101439697,-538.07330671,0.0002572,2]
[341699078,1731101439707,-500.0,0.0002572,2]
[341699079,1731101439716,-500.0,0.0002572,2]
[341699080,1731101439726,-500.0,0.0002572,2]
[341699082,1731101439735,-500.0,0.0002572,2]
[341699085,1731101439744,-500.0,0.0002572,2]
[341699087,1731101439754,-500.0,0.0002572,2]
[341699089,1731101439763,-381.65534168,0.0002572,2]
[341699091,1731101439773,-500.0,0.00025721,2]
[341699092,1731101439783,-500.0,0.00025721,2]
[341699093,1731101439793,-500.0,0.00025721,2]
[341699094,1731101439803,-500.0,0.00025721,2]
[341699095,1731101439813,-531.84291197,0.00025721,2]
[341699096,1731101439823,-529.83393222,0.00025721,2]
[341699097,1731101439833,-500.0,0.00025721,2]
[341699098,1731101439843,-500.0,0.00025721,2]
[341699099,1731101439853,-500.0,0.00025721,2]
[341699100,1731101439863,-500.0,0.00025721,2]
[341699101,1731101439873,-517.12882854,0.00025721,2]
[341699102,1731101439883,-500.0,0.00025721,2]
[341699103,1731101439893,-500.0,0.00025721,2]
[341699104,1731101439902,-479.79454138,0.00025721,2]
[341699106,1731101439912,-191.14604642,0.00025721,2]
[341699108,1731101439922,-500.0,0.00025721,2]
[341699110,1731101439931,-500.0,0.00025721,2]
[341699111,1731101439940,-161.46,0.00025721,2]
[341699112,1731101439950,-500.0,0.00025721,2]
[341699113,1731101439959,-500.0,0.00025721,2]
[341699114,1731101439969,-500.0,0.00025721,2]
[341699115,1731101439978,-500.0,0.00025721,2]
[341699116,1731101439988,-500.0,0.00025721,2]
[341699117,1731101439997,-500.0,0.00025721,2]
[341699118,1731101440007,-500.0,0.00025721,2]
[341699119,1731101440016,-500.0,0.00025721,2]
[341699121,1731101440026,-543.91228546,0.00025721,2]
[341699122,1731101440036,-500.0,0.00025721,2]
[341699123,1731101440046,-500.0,0.00025721,2]
[341699124,1731101440055,-549.33955737,0.00025721,2]
[341699125,1731101440065,-500.0,0.00025721,2]
[341699126,1731101440075,-500.0,0.00025721,2]
[341699127,1731101440084,-500.0,0.00025721,2]
[341699128,1731101440093,-500.0,0.00025721,2]
[341699129,1731101440106,-500.0,0.00025721,2]
[341699130,1731101440115,-500.0,0.00025721,2]
[341699131,1731101440124,-500.0,0.00025721,2]
[341699132,1731101440136,-500.0,0.00025721,2]
[341699133,1731101440149,-500.0,0.00025721,2]
[341699134,1731101440158,-500.0,0.00025721,2]
[341699135,1731101440167,-500.0,0.00025721,2]
[341699137,1731101440178,-500.0,0.00025721,2]
[341699139,1731101440189,-500.0,0.00025721,2]
[341699140,1731101440198,-500.0,0.00025721,2]
[341699142,1731101440207,-500.0,0.00025721,2]
[341699143,1731101440217,-500.0,0.00025721,2]
[341699144,1731101440226,-500.0,0.00025721,2]
[341699145,1731101440235,-500.0,0.00025721,2]
[341699146,1731101440244,-504.56314184,0.00025721,2]
[341699147,1731101440253,-500.0,0.00025721,2]
[341699148,1731101440262,-500.0,0.00025721,2]
[341699149,1731101440271,-500.0,0.00025721,2]
[341699150,1731101440280,-500.0,0.00025721,2]
[341699151,1731101440289,-500.0,0.00025721,2]
[341699152,1731101440300,-500.0,0.00025721,2]
[341699153,1731101440310,-500.0,0.00025721,2]
[341699154,1731101440319,-676.06,0.00025755,2]
[341699155,1731101440331,-394.0,0.00025775,2]
[341699156,1731101440341,-420.0,0.00025853,2]
[341699157,1731101440350,-500.0,0.00025973,2]
[341699158,1731101440359,-500.0,0.00025973,2]
[341699159,1731101440368,-500.0,0.00025973,2]
[341699160,1731101440377,-514.85352787,0.00025973,2]
[341699161,1731101440388,-500.0,0.00025973,2]
[341699162,1731101440397,-500.0,0.00025973,2]
[341699163,1731101440406,-501.09417111,0.00025973,2]
[341699164,1731101440415,-511.46868487,0.00025973,2]
[341699165,1731101440424,-500.0,0.00025973,2]
[341699166,1731101440433,-277.1530996,0.00025993,2]
[341699167,1731101440442,-500.0,0.00025993,2]
[341699168,1731101440452,-314.43813761,0.00025993,2]
[341699169,1731101440461,-351.80995413,0.00025993,2]
[341699170,1731101440470,-500.0,0.00025993,2]
[341699171,1731101440479,-500.0,0.00025994,2]
[341699172,1731101440488,-500.0,0.00025994,2]
[341699173,1731101440497,-500.0,0.00025994,2]
[341699174,1731101440507,-500.0,0.00025994,2]
[341699175,1731101440516,-500.0,0.00025994,2]
[341699176,1731101440526,-500.0,0.00025994,2]
[341699177,1731101440535,-506.66092593,0.00025994,2]
[341699178,1731101440544,-500.0,0.00025994,2]
[341699179,1731101440553,-505.22498324,0.00025994,2]
[341699180,1731101440562,-500.0,0.00025994,2]
[341699181,1731101440571,-500.0,0.00025994,2]
[341699182,1731101440580,-500.0,0.00025994,2]
[341699183,1731101440589,-200.0,0.00025994,2]
[341699184,1731101440598,-500.0,0.00025994,2]
[341699185,1731101440607,-500.0,0.00025994,2]
[341699186,1731101440617,-500.0,0.00025994,2]
[341699187,1731101440626,-517.25868287,0.00025994,2]
[341699188,1731101440636,-531.16173908,0.00025994,2]
[341699189,1731101440645,-500.0,0.00025994,2]
[341699190,1731101440655,-514.32867423,0.00025994,2]
[341699191,1731101440664,-576.65038489,0.00025994,2]
[341699192,1731101440673,-522.36657335,0.00025994,2]
[341699193,1731101440682,-500.0,0.00025994,2]
[341699194,1731101440691,-500.0,0.00025994,2]
[341699195,1731101440699,-510.01434787,0.00025994,2]
[341699196,1731101440708,-500.0,0.00025994,2]
[341699197,1731101440717,-500.0,0.00025994,2]
[341699198,1731101440726,-515.25436699,0.00025994,2]
[341699199,1731101440735,-500.0,0.00025994,2]
[341699200,1731101440745,-500.0,0.00025994,2]
[341699201,1731101440754,-500.0,0.00025994,2]
[341699202,1731101440763,-392.87122302,0.00025994,2]
[341699203,1731101440772,-500.0,0.00025994,2]
[341699204,1731101440781,-500.0,0.00025994,2]
[341699205,1731101440790,-500.0,0.00025994,2]
[341699206,1731101440799,-500.0,0.00025994,2]
[341699207,1731101440808,-504.88144218,0.00025994,2]
[341699208,1731101440818,-500.0,0.00025994,2]
[341699209,1731101440826,-500.0,0.00025994,2]
[341699210,1731101440836,-500.0,0.00025994,2]
[341699211,1731101440845,-500.0,0.00025994,2]
[341699212,1731101440854,-500.0,0.00025994,2]
[341699213,1731101440863,-500.0,0.00025994,2]
[341699214,1731101440871,-310.90666462,0.00025994,2]
[341699215,1731101440880,-500.0,0.00025994,2]
[341699216,1731101440889,-1973.73,0.00025994,2]
[341699217,1731101440898,-500.0,0.00025994,2]
[341699218,1731101440907,-598.98,0.00025994,2]
[341699219,1731101440916,-500.0,0.00025994,2]
[341699220,1731101440925,-520.38,0.00025994,2]
[341699221,1731101440934,-8093.77,0.00025994,2]
[341699222,1731101440943,-500.0,0.00025994,2]
[341699223,1731101440952,-500.0,0.00025994,2]
[341699224,1731101440962,-500.0,0.00025994,2]
[341699225,1731101440971,-403.22672204,0.00025994,2]
[341699226,1731101440980,-188.23831278,0.00025994,2]
[341699227,1731101440989,-848.46,0.00025994,2]
[341699228,1731101440999,-5167.66,0.00025994,2]
[341699229,1731101441007,-500.0,0.00025994,2]
[341699230,1731101441017,-500.0,0.00025994,2]
[341699231,1731101441026,-500.0,0.00025994,2]
[341699232,1731101441035,-500.0,0.00025994,2]
[341699233,1731101441044,-500.0,0.00025994,2]
[341699234,1731101441052,-200.49001882,0.00025994,2]
[341699235,1731101441062,-500.0,0.00025994,2]
[341699236,1731101441071,-500.0,0.00025994,2]
[341699237,1731101441080,-500.0,0.00025994,2]
[341699238,1731101441090,-950.36,0.00025994,2]
[341699239,1731101441102,-500.0,0.00025994,2]
[341699240,1731101441111,-500.0,0.00025994,2]
[341699241,1731101441121,-500.0,0.00025994,2]
[341699242,1731101441130,-500.0,0.00025994,2]
[341699243,1731101441140,-500.0,0.00025994,2]
[341699244,1731101441148,-500.0,0.00025994,2]
[341699245,1731101441157,-432.25517574,0.00025994,2]
[341699246,1731101441167,-500.0,0.00025994,2]
[341699247,1731101441176,-500.0,0.00025994,2]
[341699248,1731101441186,-500.0,0.00025994,2]
[341699249,1731101441195,-500.0,0.00025994,2]
[341699250,1731101441204,-500.0,0.00025994,2]
[341699251,1731101441213,-156.95,0.00025994,2]
[341699252,1731101441223,-500.0,0.00025994,2]
[341699253,1731101441232,-500.0,0.00025994,2]
[341699254,1731101441241,-500.0,0.00025994,2]
[341699255,1731101441250,-500.0,0.00025994,2]
[341699256,1731101441259,-500.0,0.00025994,2]
[341699257,1731101441268,-616.01077775,0.00025994,2]
[341699258,1731101441277,-500.0,0.00025994,2]
[341699259,1731101441286,-500.0,0.00025994,2]
[341699260,1731101441295,-437.68030177,0.00025995,2]
[341699261,1731101441305,-500.0,0.00025995,2]
[341699262,1731101441314,-577.37,0.00025995,2]
[341699263,1731101441323,-500.0,0.00025995,2]
[341699264,1731101441332,-500.0,0.00025995,2]
[341699265,1731101441341,-500.0,0.00025995,2]
[341699266,1731101441350,-639.13320594,0.00025995,2]
[341699267,1731101441359,-500.0,0.00025995,2]
[341699268,1731101441368,-500.0,0.00025995,2]
[341699269,1731101441377,-185.69,0.00025995,2]
[341699270,1731101441387,-500.0,0.00025995,2]
[341699271,1731101441396,-500.0,0.00025995,2]
[341699272,1731101441405,-290.76548043,0.00025995,2]
[341699273,1731101441414,-500.0,0.00025995,2]
[341699274,1731101441423,-500.0,0.00025995,2]
[341699275,1731101441432,-500.0,0.00025995,2]
[341699276,1731101441441,-500.0,0.00025995,2]
[341699277,1731101441451,-500.0,0.00025995,2]
[341699278,1731101441460,-500.0,0.00025995,2]
[341699279,1731101441469,-500.0,0.00025995,2]
[341699280,1731101441478,-500.0,0.00025995,2]
[341699281,1731101441487,-500.0,0.00025995,2]
[341699282,1731101441496,-500.0,0.00025995,2]
[341699283,1731101441505,-500.0,0.00025995,2]
[341699284,1731101441514,-500.0,0.00025995,2]
[341699285,1731101441523,-500.0,0.00025995,2]
[341699286,1731101441532,-500.0,0.00025995,2]
[341699287,1731101441541,-500.0,0.00025995,2]
[341699288,1731101441550,-676.06,0.00026029,2]
[341699289,1731101441559,-360.83375,0.00026057,2]
[341699290,1731101441569,-420.0,0.0002622,2]
[341699291,1731101441578,-151.0,0.00026266,7]
[341699292,1731101441587,-500.0,0.00026268,2]
[341699293,1731101441596,-500.0,0.00026268,2]
[341699294,1731101441606,-500.0,0.00026268,2]
[341699295,1731101441615,-200.0,0.00026268,2]
[341699296,1731101441624,-500.0,0.00026268,2]
[341699297,1731101441634,-500.0,0.00026268,2]
[341699298,1731101441643,-500.47304241,0.00026268,2]
[341699299,1731101441652,-500.0,0.00026268,2]
[341699300,1731101441661,-500.0,0.00026268,2]
[341699301,1731101441670,-500.0,0.00026268,2]
[341699302,1731101441679,-511.83,0.00026268,2]
[341699303,1731101441688,-500.0,0.00026268,2]
[341699304,1731101441697,-643.58960014,0.00026268,2]
[341699305,1731101441707,-500.0,0.00026268,2]
[341699306,1731101441715,-347.65283181,0.00026268,2]
[341699307,1731101441724,-527.50054657,0.00026268,2]
[341699308,1731101441733,-530.85474002,0.00026268,2]
[341699309,1731101441743,-500.0,0.00026268,2]
[341699310,1731101441752,-500.0,0.00026268,2]
[341699311,1731101441761,-1973.73,0.00026268,2]
[341699312,1731101441771,-158.83318044,0.00026268,2]
[341699313,1731101441780,-500.0,0.00026268,2]
[341699314,1731101441789,-8093.77,0.00026268,2]
[341699315,1731101441799,-500.0,0.00026268,2]
[341699316,1731101441808,-500.0,0.00026268,2]
[341699317,1731101441817,-848.46,0.00026268,2]
[341699318,1731101441828,-5167.66,0.00026268,2]
[341699319,1731101441837,-500.0,0.00026268,2]
[341699320,1731101441846,-500.0,0.00026268,2]
[341699321,1731101441855,-151.0,0.00026268,2]
[341699322,1731101441865,-500.0,0.00026268,2]
[341699323,1731101441874,-528.51177373,0.00026268,2]
[341699324,1731101441884,-950.36,0.00026268,2]
[341699325,1731101441893,-500.0,0.00026268,2]
[341699326,1731101441902,-500.0,0.00026268,2]
[341699327,1731101441911,-500.0,0.00026268,2]
[341699328,1731101441920,-500.0,0.00026268,2]
[341699329,1731101441929,-500.0,0.00026268,2]
[341699330,1731101441938,-500.0,0.00026268,2]
[341699331,1731101441947,-225.78845566,0.00026268,2]
[341699332,1731101441956,-500.0,0.00026268,2]
[341699333,1731101441965,-500.0,0.00026268,2]
[341699334,1731101441975,-500.0,0.00026268,2]
[341699335,1731101441984,-500.0,0.00026268,2]
[341699336,1731101441993,-500.0,0.00026268,2]
[341699337,1731101442003,-500.0,0.00026268,2]
[341699338,1731101442012,-500.0,0.00026268,2]
[341699339,1731101442021,-500.0,0.00026268,2]
[341699340,1731101442030,-500.0,0.00026269,2]
[341699341,1731101442039,-500.0,0.00026269,2]
[341699342,1731101442048,-500.0,0.00026269,2]
[341699343,1731101442057,-500.0,0.00026269,2]
[341699344,1731101442066,-258.32812302,0.00026269,2]
[341699345,1731101442076,-500.0,0.00026269,2]
[341699346,1731101442084,-240.560348,0.00026269,7]
[341699347,1731101442095,-576.30016349,0.00026269,2]
[341699348,1731101442106,-500.0,0.00026269,2]
[341699349,1731101442116,-500.0,0.00026269,2]